[Event "44th Chess Olympiad Open 2022"]
[Site "Chennai"]
[Date "2022.08.07"]
[Round "9.82"]
[White "Walrond, Niccolo"]
[Black "Thomas, Larry"]
[Result "0-1"]
[WhiteElo "1210"]
[BlackElo "1317"]
[Annotator "NA RC"]
[PlyCount "118"]
[EventDate "2022.??.??"]
[TimeControl "60"]

1. e4 {[%emt 0:00:02]} c6 {[%emt 0:00:02]} 2. d4 {[%emt 0:00:25]} d5 {[%emt 0:
00:00]} 3. exd5 {[%emt 0:00:18]} cxd5 {[%emt 0:00:12]} 4. c4 {[%emt 0:00:37]}
Nf6 {[%emt 0:00:29]} 5. Nc3 {[%emt 0:00:31]} Bg4 {[%emt 0:00:51]} 6. Qb3 {
[%emt 0:02:51]} Bd7 {[%emt 0:11:05]} 7. cxd5 {[%emt 0:02:55]} Qc8 {[%emt 0:00:
00]} 8. Bc4 {[%emt 0:09:14]} g6 {[%emt 0:01:19]} 9. Nf3 {[%emt 0:02:11]} Bg7 {
[%emt 0:01:08]} 10. O-O {[%emt 0:02:35]} O-O {[%emt 0:00:58]} 11. Re1 {[%emt 0:
00:00]} Re8 {[%emt 0:04:16]} 12. Bf4 {[%emt 0:06:38]} Na6 {[%emt 0:12:10]} 13.
d6 {[%emt 0:02:10]} e6 {[%emt 0:01:28]} 14. d5 {[%emt 0:00:24]} Nc5 {[%emt 0:
00:00]} 15. Qc2 {[%emt 0:04:45]} exd5 {[%emt 0:06:37]} 16. Nxd5 {[%emt 0:02:02]
} Rxe1+ {[%emt 0:01:56]} 17. Rxe1 {[%emt 0:00:19]} Nxd5 {[%emt 0:00:07]} 18.
Bxd5 {[%emt 0:01:58]} Ne6 {[%emt 0:01:39]} 19. Qxc8+ {[%emt 0:05:09]} Rxc8 {
[%emt 0:01:17]} 20. Be5 {[%emt 0:05:19]} b6 {[%emt 0:04:35]} 21. Bxg7 {[%emt 0:
00:00]} Kxg7 {[%emt 0:00:51]} 22. Ne5 {[%emt 0:02:48]} Rd8 {[%emt 0:01:37]} 23.
Rd1 {[%emt 0:00:09]} Kf6 {[%emt 0:02:27]} 24. Nxd7+ {[%emt 0:03:36]} Rxd7 {
[%emt 0:00:23]} 25. Bc6 {[%emt 0:00:20]} Rd8 {[%emt 0:00:24]} 26. g3 {[%emt 0:
00:00]} g5 {[%emt 0:02:05]} 27. Kg2 {[%emt 0:01:07]} Ke5 {[%emt 0:01:14]} 28.
Rd5+ {[%emt 0:00:51]} Kf6 {[%emt 0:01:10]} 29. Kf3 {[%emt 0:01:15]} h5 {
[%emt 0:01:09]} 30. b4 {[%emt 0:01:34]} Kg6 {[%emt 0:09:47]} 31. Ke4 {[%emt 0:
00:00]} f6 {[%emt 0:01:10]} 32. a4 {[%emt 0:04:40]} Nf8 {[%emt 0:02:24]} 33. a5
{[%emt 0:03:15]} bxa5 {[%emt 0:01:36]} 34. bxa5 {[%emt 0:00:11]} Ne6 {[%emt 0:
00:00]} 35. Rd1 {[%emt 0:04:22]} Rc8 {[%emt 0:04:26]} 36. Kd5 {[%emt 0:01:45]}
Nd8 {[%emt 0:02:39]} 37. Ba4 {[%emt 0:02:11]} Rc3 {[%emt 0:04:21]} 38. d7 {
[%emt 0:06:02]} Kf7 {[%emt 0:02:42]} 39. Re1 {[%emt 0:03:04]} Rd3+ {[%emt 0:00:
00]} 40. Kc4 {[%emt 0:01:05]} Rd2 {[%emt 0:01:53]} 41. a6 {[%emt 0:31:52]} Ne6
{[%emt 0:31:30]} 42. Rb1 {[%emt 0:01:50]} Rd4+ {[%emt 0:02:49]} 43. Kb3 {
[%emt 0:00:24]} Ke7 {[%emt 0:00:00]} 44. Rc1 {[%emt 0:00:00]} Rd6 {[%emt 0:00:
00]} 45. Bb5 {[%emt 0:00:00]} Nd4+ {[%emt 0:00:00]} 46. Ka4 {[%emt 0:00:00]}
Nxb5 {[%emt 0:00:00]} 47. d8=Q+ {[%emt 0:00:00]} Kxd8 {[%emt 0:00:00]} 48. Kxb5
{[%emt 0:00:00]} Kd7 {[%emt 0:00:00]} 49. Rc2 {[%emt 0:00:00]} Rb6+ {[%emt 0:
00:00]} 50. Ka5 {[%emt 0:00:00]} Rc6 {[%emt 0:00:00]} 51. Rb2 {[%emt 0:00:00]}
Rc5+ {[%emt 0:00:00]} 52. Rb5 {[%emt 0:00:00]} Rxb5+ {[%emt 0:00:00]} 53. Kxb5
{[%emt 0:00:00]} Kd6 {[%emt 0:00:00]} 54. h3 {[%emt 0:00:00]} f5 {[%emt 0:00:
00]} 55. f3 {[%emt 0:00:00]} g4 {[%emt 0:00:00]} 56. fxg4 {[%emt 0:00:00]} fxg4
{[%emt 0:00:00]} 57. h4 {[%emt 0:00:00]} Kd5 {[%emt 0:00:05]} 58. Kb4 {[%emt 0:
00:00]} Kc6 {[%emt 0:02:09]} 59. Ka5 {[%emt 0:01:05]} Kc5 {[%emt 0:00:03]} 0-1

[Event "44th Chess Olympiad Open 2022"]
[Site "Chennai"]
[Date "2022.08.07"]
[Round "9.84"]
[White "Muheto, Dieudonne"]
[Black "Tan, Santiago Jr"]
[Result "1-0"]
[WhiteElo "1830"]
[BlackElo "1872"]
[Annotator "NA RC"]
[PlyCount "149"]
[EventDate "2022.??.??"]
[TimeControl "60"]

1. d4 {[%emt 0:00:11]} d5 {[%emt 0:00:11]} 2. Bf4 {[%emt 0:00:07]} Nf6 {
[%emt 0:01:24]} 3. e3 {[%emt 0:00:17]} a6 {[%emt 0:00:09]} 4. Nd2 {[%emt 0:00:
00]} Bf5 {[%emt 0:00:30]} 5. c4 {[%emt 0:00:12]} c6 {[%emt 0:00:17]} 6. Ngf3 {
[%emt 0:00:20]} e6 {[%emt 0:00:14]} 7. c5 {[%emt 0:00:12]} Be7 {[%emt 0:00:17]}
8. Be2 {[%emt 0:00:26]} Nbd7 {[%emt 0:01:50]} 9. Qb3 {[%emt 0:00:17]} Qc8 {
[%emt 0:02:03]} 10. Ne5 {[%emt 0:00:25]} O-O {[%emt 0:00:16]} 11. Ndf3 {
[%emt 0:00:46]} h6 {[%emt 0:00:52]} 12. O-O {[%emt 0:00:08]} Ne4 {[%emt 0:00:
00]} 13. Bd3 {[%emt 0:12:57]} Ndf6 {[%emt 0:00:00]} 14. Qc2 {[%emt 0:01:06]}
Rd8 {[%emt 0:00:00]} 15. Nd2 {[%emt 0:00:15]} g5 {[%emt 0:06:00]} 16. Bg3 {
[%emt 0:00:10]} Nxd2 {[%emt 0:04:47]} 17. Qxd2 {[%emt 0:00:12]} Bxd3 {[%emt 0:
00:00]} 18. Qxd3 {[%emt 0:00:58]} Ne4 {[%emt 0:04:05]} 19. f3 {[%emt 0:00:08]}
Nxg3 {[%emt 0:00:48]} 20. hxg3 {[%emt 0:00:07]} Bf6 {[%emt 0:00:33]} 21. f4 {
[%emt 0:00:19]} Bxe5 {[%emt 0:00:39]} 22. fxe5 {[%emt 0:00:29]} Rf8 {[%emt 0:
00:00]} 23. Rf6 {[%emt 0:00:13]} Kg7 {[%emt 0:00:37]} 24. Qe2 {[%emt 0:01:42]}
Rh8 {[%emt 0:05:48]} 25. Qh5 {[%emt 0:04:37]} Qd7 {[%emt 0:03:54]} 26. Raf1 {
[%emt 0:00:16]} Raf8 {[%emt 0:00:30]} 27. Kf2 {[%emt 0:00:17]} Rh7 {[%emt 0:00:
00]} 28. Ke2 {[%emt 0:01:54]} Qe7 {[%emt 0:00:21]} 29. Rh1 {[%emt 0:01:41]}
Rfh8 {[%emt 0:00:14]} 30. Qg4 {[%emt 0:00:36]} Kf8 {[%emt 0:02:14]} 31. Rh5 {
[%emt 0:00:32]} Kg7 {[%emt 0:03:12]} 32. b4 {[%emt 0:02:16]} b5 {[%emt 0:00:59]
} 33. e4 {[%emt 0:01:42]} Qd7 {[%emt 0:00:24]} 34. Qf3 {[%emt 0:00:26]} Rd8 {
[%emt 0:01:12]} 35. exd5 {[%emt 0:00:20]} cxd5 {[%emt 0:00:53]} 36. g4 {
[%emt 0:01:54]} Qe7 {[%emt 0:01:07]} 37. Rh1 {[%emt 0:00:36]} Ra8 {[%emt 0:00:
00]} 38. Rf1 {[%emt 0:00:30]} Rf8 {[%emt 0:01:53]} 39. g3 {[%emt 0:05:16]} Kg8
{[%emt 0:01:31]} 40. Kf2 {[%emt 0:01:00]} Kg7 {[%emt 0:02:37]} 41. Kg2 {
[%emt 0:30:18]} Kg8 {[%emt 0:30:33]} 42. Qa3 {[%emt 0:06:10]} Qb7 {[%emt 0:00:
00]} 43. R6f2 {[%emt 0:01:55]} Rg7 {[%emt 0:00:27]} 44. Qd3 {[%emt 0:01:37]}
Qe7 {[%emt 0:01:45]} 45. Qc3 {[%emt 0:00:59]} Rc8 {[%emt 0:02:21]} 46. Rf6 {
[%emt 0:00:15]} Rh7 {[%emt 0:00:11]} 47. Ra1 {[%emt 0:01:55]} Qd7 {[%emt 0:00:
00]} 48. Qc2 {[%emt 0:00:29]} Kg7 {[%emt 0:01:01]} 49. Rc1 {[%emt 0:01:03]} Qe7
{[%emt 0:00:43]} 50. a3 {[%emt 0:00:14]} Qa7 {[%emt 0:01:45]} 51. Rff1 {
[%emt 0:00:54]} Rc6 {[%emt 0:03:59]} 52. Qf2 {[%emt 0:00:26]} Qe7 {[%emt 0:00:
00]} 53. Qf6+ {[%emt 0:00:13]} Qxf6 {[%emt 0:00:06]} 54. Rxf6 {[%emt 0:00:12]}
Kf8 {[%emt 0:00:35]} 55. Ra1 {[%emt 0:00:18]} Kg7 {[%emt 0:01:08]} 56. a4 {
[%emt 0:00:39]} Rh8 {[%emt 0:01:08]} 57. axb5 {[%emt 0:05:27]} axb5 {[%emt 0:
00:00]} 58. Ra7 {[%emt 0:00:32]} Rf8 {[%emt 0:00:26]} 59. Rf1 {[%emt 0:00:29]}
Kg6 {[%emt 0:00:33]} 60. Ra5 {[%emt 0:02:41]} Rb8 {[%emt 0:01:00]} 61. Rfa1 {
[%emt 0:03:06]} Rc7 {[%emt 0:01:52]} 62. Rf1 {[%emt 0:00:24]} Re7 {[%emt 0:00:
00]} 63. Rf6+ {[%emt 0:00:11]} Kg7 {[%emt 0:00:06]} 64. Kf2 {[%emt 0:01:25]}
Rc7 {[%emt 0:00:53]} 65. Ke3 {[%emt 0:00:11]} Rd7 {[%emt 0:01:37]} 66. Rf1 {
[%emt 0:00:34]} Kg6 {[%emt 0:00:00]} 67. Ra6 {[%emt 0:00:18]} Rc7 {[%emt 0:00:
00]} 68. Rfa1 {[%emt 0:00:18]} h5 {[%emt 0:00:28]} 69. gxh5+ {[%emt 0:01:04]}
Kxh5 {[%emt 0:00:07]} 70. Kf3 {[%emt 0:00:20]} Kg6 {[%emt 0:02:39]} 71. Ra8 {
[%emt 0:01:55]} Rbb7 {[%emt 0:04:42]} 72. g4 {[%emt 0:01:00]} f5 {[%emt 0:00:
00]} 73. gxf5+ {[%emt 0:00:39]} exf5 {[%emt 0:00:22]} 74. R1a6+ {[%emt 0:00:09]
} Kg7 {[%emt 0:00:35]} 75. c6 {[%emt 0:01:04]} 1-0

[Event "44th Chess Olympiad Open 2022"]
[Site "Chennai"]
[Date "2022.08.07"]
[Round "9.84"]
[White "Mutabazi Hugues"]
[Black "Cabunagan, Tito"]
[Result "1/2-1/2"]
[WhiteElo "1666"]
[BlackElo "1706"]
[Annotator "NA RC"]
[PlyCount "88"]
[EventDate "2022.??.??"]
[TimeControl "60"]

1. e4 {[%emt 0:02:03]} d5 {[%emt 0:00:00]} 2. exd5 {[%emt 0:00:09]} Qxd5 {
[%emt 0:00:01]} 3. Nc3 {[%emt 0:00:21]} Qe5+ {[%emt 0:00:01]} 4. Qe2 {[%emt 0:
00:00]} Qxe2+ {[%emt 0:00:03]} 5. Bxe2 {[%emt 0:00:10]} c6 {[%emt 0:00:03]} 6.
Nf3 {[%emt 0:00:45]} Bg4 {[%emt 0:00:02]} 7. h3 {[%emt 0:01:09]} Bxf3 {[%emt 0:
00:00]} 8. Bxf3 {[%emt 0:00:20]} e6 {[%emt 0:00:01]} 9. d4 {[%emt 0:01:19]} Nd7
{[%emt 0:00:02]} 10. a3 {[%emt 0:00:43]} Ngf6 {[%emt 0:00:13]} 11. Bf4 {
[%emt 0:00:41]} h6 {[%emt 0:00:21]} 12. Ne4 {[%emt 0:03:06]} Nxe4 {[%emt 0:00:
00]} 13. Bxe4 {[%emt 0:00:06]} g5 {[%emt 0:00:21]} 14. Bd2 {[%emt 0:03:40]} Bg7
{[%emt 0:00:01]} 15. c3 {[%emt 0:00:06]} O-O {[%emt 0:00:26]} 16. f4 {[%emt 0:
00:00]} gxf4 {[%emt 0:00:48]} 17. Bxf4 {[%emt 0:00:07]} e5 {[%emt 0:00:13]} 18.
dxe5 {[%emt 0:01:23]} Bxe5 {[%emt 0:00:02]} 19. Bxh6 {[%emt 0:03:47]} Bxc3+ {
[%emt 0:00:54]} 20. Kf1 {[%emt 0:08:46]} Bg7 {[%emt 0:00:03]} 21. Bxg7 {
[%emt 0:00:20]} Kxg7 {[%emt 0:00:01]} 22. Rd1 {[%emt 0:01:03]} Nc5 {[%emt 0:00:
00]} 23. Bc2 {[%emt 0:00:13]} Rad8 {[%emt 0:00:22]} 24. Kf2 {[%emt 0:00:24]}
Ne6 {[%emt 0:00:12]} 25. Rhe1 {[%emt 0:01:44]} Rxd1 {[%emt 0:00:20]} 26. Rxd1 {
[%emt 0:00:27]} Rd8 {[%emt 0:00:01]} 27. Ke3 {[%emt 0:01:19]} Rxd1 {[%emt 0:00:
00]} 28. Bxd1 {[%emt 0:00:23]} Kf6 {[%emt 0:00:06]} 29. Bc2 {[%emt 0:01:14]}
Ke5 {[%emt 0:00:09]} 30. Bb3 {[%emt 0:01:42]} Nd8 {[%emt 0:00:01]} 31. g4 {
[%emt 0:01:00]} f6 {[%emt 0:00:21]} 32. Bc4 {[%emt 0:01:38]} c5 {[%emt 0:00:10]
} 33. b4 {[%emt 0:01:47]} cxb4 {[%emt 0:00:09]} 34. axb4 {[%emt 0:00:08]} Nc6 {
[%emt 0:00:20]} 35. b5 {[%emt 0:00:15]} Nb4 {[%emt 0:00:46]} 36. Bb3 {[%emt 0:
00:00]} a5 {[%emt 0:00:14]} 37. bxa6 {[%emt 0:04:08]} bxa6 {[%emt 0:00:03]} 38.
h4 {[%emt 0:00:09]} Nd5+ {[%emt 0:00:28]} 39. Bxd5 {[%emt 0:01:18]} Kxd5 {
[%emt 0:00:01]} 40. h5 {[%emt 0:00:11]} Ke6 {[%emt 0:00:10]} 41. Kd4 {[%emt 0:
00:00]} Kf7 {[%emt 0:30:10]} 42. Kc4 {[%emt 0:00:50]} Kg7 {[%emt 0:00:01]} 43.
Kb4 {[%emt 0:00:24]} Kh6 {[%emt 0:00:01]} 44. Ka5 {[%emt 0:00:36]} f5 {[%emt 0:
00:00]} 1/2-1/2

[Event "44th Chess Olympiad Open 2022"]
[Site "Chennai"]
[Date "2022.08.07"]
[Round "9.84"]
[White "Reklai Reece"]
[Black "Elvis Havyarimana"]
[Result "0-1"]
[WhiteElo "1351"]
[BlackElo "1724"]
[Annotator "NA RC"]
[PlyCount "72"]
[EventDate "2022.??.??"]
[TimeControl "60"]

1. d4 {[%emt 0:00:11]} e6 {[%emt 0:00:43]} 2. Bf4 {[%emt 0:00:22]} Nf6 {
[%emt 0:00:07]} 3. e3 {[%emt 0:00:37]} d5 {[%emt 0:00:10]} 4. c3 {[%emt 0:00:
00]} c5 {[%emt 0:00:13]} 5. Nf3 {[%emt 0:00:55]} Nc6 {[%emt 0:00:07]} 6. Nbd2 {
[%emt 0:02:19]} cxd4 {[%emt 0:00:08]} 7. cxd4 {[%emt 0:00:47]} Bd6 {[%emt 0:00:
00]} 8. Bg3 {[%emt 0:00:51]} O-O {[%emt 0:00:12]} 9. Bd3 {[%emt 0:01:54]} a5 {
[%emt 0:00:16]} 10. a3 {[%emt 0:01:58]} Re8 {[%emt 0:00:17]} 11. O-O {[%emt 0:
00:00]} e5 {[%emt 0:02:04]} 12. dxe5 {[%emt 0:06:45]} Nxe5 {[%emt 0:00:16]} 13.
Nxe5 {[%emt 0:01:18]} Bxe5 {[%emt 0:00:07]} 14. Qc2 {[%emt 0:05:47]} Bxg3 {
[%emt 0:01:17]} 15. fxg3 {[%emt 0:00:38]} Rxe3 {[%emt 0:04:45]} 16. Rf3 {
[%emt 0:04:38]} Qb6 {[%emt 0:00:33]} 17. Kh1 {[%emt 0:04:26]} Bg4 {[%emt 0:00:
00]} 18. Rxe3 {[%emt 0:34:10]} Qxe3 {[%emt 0:00:18]} 19. Nf1 {[%emt 0:05:14]}
Qb6 {[%emt 0:00:58]} 20. h3 {[%emt 0:00:25]} Rc8 {[%emt 0:01:04]} 21. Qd2 {
[%emt 0:01:56]} Be6 {[%emt 0:00:07]} 22. Rc1 {[%emt 0:01:56]} g6 {[%emt 0:00:
00]} 23. Ne3 {[%emt 0:02:31]} Ne4 {[%emt 0:04:50]} 24. Rxc8+ {[%emt 0:03:25]}
Bxc8 {[%emt 0:00:09]} 25. Bxe4 {[%emt 0:01:25]} dxe4 {[%emt 0:00:43]} 26. g4 {
[%emt 0:00:58]} Be6 {[%emt 0:00:24]} 27. Kg1 {[%emt 0:02:47]} Qc5 {[%emt 0:00:
00]} 28. b4 {[%emt 0:01:11]} axb4 {[%emt 0:00:47]} 29. axb4 {[%emt 0:00:14]}
Qe5 {[%emt 0:01:30]} 30. Kf1 {[%emt 0:03:40]} h6 {[%emt 0:01:52]} 31. Ke2 {
[%emt 0:00:46]} b5 {[%emt 0:00:36]} 32. Nd1 {[%emt 0:00:54]} Bc4+ {[%emt 0:00:
00]} 33. Ke1 {[%emt 0:00:36]} Qh2 {[%emt 0:03:45]} 34. Kf2 {[%emt 0:01:26]} g5
{[%emt 0:02:04]} 35. Nc3 {[%emt 0:00:13]} Qe5 {[%emt 0:00:57]} 36. Ke3 {
[%emt 0:00:24]} Qf4+ {[%emt 0:00:50]} 0-1

[Event "44th Chess Olympiad Open 2022"]
[Site "Chennai"]
[Date "2022.08.07"]
[Round "9.85"]
[White "Depaune, Ricko"]
[Black "Shaw, Clifford"]
[Result "0-1"]
[WhiteElo "1726"]
[BlackElo "1615"]
[Annotator "NA"]
[PlyCount "86"]
[EventDate "2022.??.??"]
[TimeControl "60"]

1. e4 {[%emt 0:00:06]} e6 {[%emt 0:00:01]} 2. f4 {[%emt 0:00:10]} d5 {[%emt 0:
00:00]} 3. e5 {[%emt 0:00:07]} c5 {[%emt 0:00:29]} 4. Nf3 {[%emt 0:00:45]} Nc6
{[%emt 0:00:59]} 5. Bb5 {[%emt 0:00:22]} a6 {[%emt 0:01:11]} 6. Bxc6+ {[%emt 0:
00:00]} bxc6 {[%emt 0:00:03]} 7. c3 {[%emt 0:00:27]} d4 {[%emt 0:00:55]} 8. O-O
{[%emt 0:00:03]} Nh6 {[%emt 0:04:43]} 9. h3 {[%emt 0:00:22]} Nf5 {[%emt 0:00:
00]} 10. Kh2 {[%emt 0:00:11]} h5 {[%emt 0:01:14]} 11. Na3 {[%emt 0:01:24]} d3 {
[%emt 0:05:17]} 12. Ne1 {[%emt 0:00:05]} g5 {[%emt 0:04:57]} 13. Qf3 {[%emt 0:
00:00]} Qd5 {[%emt 0:10:16]} 14. Nxd3 {[%emt 0:02:20]} g4 {[%emt 0:00:53]} 15.
Qxd5 {[%emt 0:11:50]} cxd5 {[%emt 0:00:04]} 16. Nc2 {[%emt 0:00:11]} a5 {
[%emt 0:01:39]} 17. b3 {[%emt 0:00:29]} Ba6 {[%emt 0:03:55]} 18. Nce1 {[%emt 0:
00:00]} c4 {[%emt 0:07:16]} 19. bxc4 {[%emt 0:00:52]} dxc4 {[%emt 0:00:32]} 20.
Nb2 {[%emt 0:00:52]} Rd8 {[%emt 0:08:02]} 21. Nc2 {[%emt 0:00:46]} Bc5 {
[%emt 0:07:20]} 22. Ne3 {[%emt 0:00:22]} gxh3 {[%emt 0:06:05]} 23. Kxh3 {
[%emt 0:04:49]} Rg8 {[%emt 0:04:01]} 24. Nxf5 {[%emt 0:00:49]} exf5 {[%emt 0:
00:00]} 25. Nd1 {[%emt 0:07:08]} Bb7 {[%emt 0:03:03]} 26. g3 {[%emt 0:12:06]}
h4 {[%emt 0:00:21]} 27. Ne3 {[%emt 0:02:51]} Bxe3 {[%emt 0:02:01]} 28. dxe3 {
[%emt 0:02:15]} Rxg3+ {[%emt 0:01:19]} 29. Kh2 {[%emt 0:01:45]} Be4 {[%emt 0:
00:00]} 30. a4 {[%emt 0:03:18]} Rg2+ {[%emt 0:06:08]} 31. Kh3 {[%emt 0:00:44]}
Rg4 {[%emt 0:01:10]} 32. Kh2 {[%emt 0:00:23]} Rd3 {[%emt 0:00:43]} 33. Ra2 {
[%emt 0:10:04]} Rxc3 {[%emt 0:03:02]} 34. Rd1 {[%emt 0:05:51]} Rb3 {[%emt 0:00:
00]} 35. Rad2 {[%emt 0:06:11]} Bd3 {[%emt 0:00:35]} 36. Rb2 {[%emt 0:05:41]}
Rb4 {[%emt 0:00:02]} 37. Rxb4 {[%emt 0:04:01]} axb4 {[%emt 0:03:30]} 38. Bd2 {
[%emt 0:00:02]} b3 {[%emt 0:02:18]} 39. Bc3 {[%emt 0:01:00]} Kd7 {[%emt 0:00:
00]} 40. Ra1 {[%emt 0:04:55]} Kc7 {[%emt 0:04:50]} 41. Kh3 {[%emt 0:34:50]} Kb6
{[%emt 0:30:37]} 42. Rh1 {[%emt 0:02:24]} Ka6 {[%emt 0:00:52]} 43. Rh2 {
[%emt 0:00:03]} Bf1+ {[%emt 0:00:00]} 0-1

[Event "44th Chess Olympiad Open 2022"]
[Site "Chennai"]
[Date "2022.08.07"]
[Round "9.85"]
[White "Taleka, Jed Selu"]
[Black "Tracey, Shaun M"]
[Result "0-1"]
[WhiteElo "1672"]
[BlackElo "1650"]
[Annotator "NA"]
[PlyCount "138"]
[EventDate "2022.??.??"]
[TimeControl "60"]

1. e4 {[%emt 0:00:07]} d5 {[%emt 0:00:05]} 2. exd5 {[%emt 0:00:11]} Qxd5 {
[%emt 0:00:02]} 3. Nc3 {[%emt 0:00:10]} Qa5 {[%emt 0:00:05]} 4. Nf3 {[%emt 0:
00:00]} Nf6 {[%emt 0:00:06]} 5. a3 {[%emt 0:01:54]} c6 {[%emt 0:07:29]} 6. Bc4
{[%emt 0:01:09]} Bf5 {[%emt 0:02:39]} 7. b4 {[%emt 0:00:29]} Qd8 {[%emt 0:00:
00]} 8. O-O {[%emt 0:00:20]} e6 {[%emt 0:02:18]} 9. d4 {[%emt 0:02:55]} Be7 {
[%emt 0:01:07]} 10. Be3 {[%emt 0:00:10]} O-O {[%emt 0:02:43]} 11. Qe2 {[%emt 0:
00:00]} Nbd7 {[%emt 0:02:57]} 12. Rad1 {[%emt 0:00:16]} Nb6 {[%emt 0:02:06]}
13. Bb3 {[%emt 0:00:27]} a5 {[%emt 0:01:18]} 14. bxa5 {[%emt 0:01:25]} Rxa5 {
[%emt 0:00:23]} 15. a4 {[%emt 0:00:18]} Qc7 {[%emt 0:13:15]} 16. Nh4 {[%emt 0:
00:00]} Bd6 {[%emt 0:03:44]} 17. h3 {[%emt 0:01:53]} Bh2+ {[%emt 0:07:42]} 18.
Kh1 {[%emt 0:00:08]} Bf4 {[%emt 0:01:27]} 19. Qd2 {[%emt 0:00:53]} Bxe3 {
[%emt 0:01:35]} 20. fxe3 {[%emt 0:00:15]} Rfa8 {[%emt 0:02:33]} 21. Nxf5 {
[%emt 0:00:22]} exf5 {[%emt 0:01:20]} 22. Qd3 {[%emt 0:00:44]} Nh5 {[%emt 0:00:
00]} 23. Rf3 {[%emt 0:00:52]} Ng3+ {[%emt 0:01:25]} 24. Kg1 {[%emt 0:00:11]}
Re8 {[%emt 0:01:54]} 25. Kf2 {[%emt 0:08:22]} Ne4+ {[%emt 0:03:53]} 26. Nxe4 {
[%emt 0:00:31]} Rxe4 {[%emt 0:00:42]} 27. Kg1 {[%emt 0:03:17]} g6 {[%emt 0:00:
00]} 28. Rdf1 {[%emt 0:00:37]} Re7 {[%emt 0:05:29]} 29. Qc3 {[%emt 0:04:30]}
Nxa4 {[%emt 0:03:55]} 30. Qb4 {[%emt 0:02:04]} c5 {[%emt 0:02:13]} 31. Qd2 {
[%emt 0:01:57]} c4 {[%emt 0:03:40]} 32. Bxc4 {[%emt 0:01:29]} b5 {[%emt 0:00:
00]} 33. Bb3 {[%emt 0:00:19]} Nc3 {[%emt 0:01:57]} 34. Qd3 {[%emt 0:01:01]} b4
{[%emt 0:04:45]} 35. Qc4 {[%emt 0:04:06]} Qxc4 {[%emt 0:01:16]} 36. Bxc4 {
[%emt 0:00:03]} Ne4 {[%emt 0:00:17]} 37. Re1 {[%emt 0:01:08]} Nd2 {[%emt 0:00:
00]} 38. Bb3 {[%emt 0:00:16]} Nxf3+ {[%emt 0:00:18]} 39. gxf3 {[%emt 0:00:44]}
Kg7 {[%emt 0:02:08]} 40. Kf2 {[%emt 0:00:06]} Kf6 {[%emt 0:02:46]} 41. h4 {
[%emt 0:30:38]} Rd7 {[%emt 0:32:13]} 42. Rd1 {[%emt 0:01:40]} Re7 {[%emt 0:00:
00]} 43. Rb1 {[%emt 0:00:00]} Rc7 {[%emt 0:00:00]} 44. Ke2 {[%emt 0:00:00]}
Raa7 {[%emt 0:00:00]} 45. Kd2 {[%emt 0:00:00]} Ra5 {[%emt 0:00:00]} 46. e4 {
[%emt 0:00:00]} fxe4 {[%emt 0:00:00]} 47. fxe4 {[%emt 0:00:00]} Ke7 {[%emt 0:
00:00]} 48. Rf1 {[%emt 0:00:00]} f6 {[%emt 0:00:00]} 49. d5 {[%emt 0:00:00]}
Ra6 {[%emt 0:00:00]} 50. Kd3 {[%emt 0:00:00]} Rc3+ {[%emt 0:00:00]} 51. Kd4 {
[%emt 0:00:00]} Kd7 {[%emt 0:00:00]} 52. Rf4 {[%emt 0:00:00]} Ke7 {[%emt 0:00:
00]} 53. Rf1 {[%emt 0:00:00]} h6 {[%emt 0:00:00]} 54. Re1 {[%emt 0:00:00]} Rh3
{[%emt 0:01:10]} 55. Kc5 {[%emt 0:00:00]} Rxh4 {[%emt 0:00:33]} 56. Kxb4 {
[%emt 0:00:00]} Kd6 {[%emt 0:00:36]} 57. Kb5 {[%emt 0:00:00]} Ra8 {[%emt 0:00:
00]} 58. Kc4 {[%emt 0:00:00]} f5 {[%emt 0:00:16]} 59. Kd4 {[%emt 0:00:00]} Re8
{[%emt 0:00:25]} 60. Ra1 {[%emt 0:00:00]} Rexe4+ {[%emt 0:00:35]} 61. Kd3 {
[%emt 0:00:00]} Rh3+ {[%emt 0:02:03]} 62. Kd2 {[%emt 0:00:00]} Rd4+ {[%emt 0:
00:00]} 63. Ke2 {[%emt 0:00:00]} Ke5 {[%emt 0:00:14]} 64. Ra6 {[%emt 0:00:00]}
g5 {[%emt 0:01:26]} 65. Re6+ {[%emt 0:00:00]} Kf4 {[%emt 0:00:08]} 66. Rf6 {
[%emt 0:01:04]} Re3+ {[%emt 0:01:17]} 67. Kf2 {[%emt 0:00:21]} Rd2+ {[%emt 0:
00:00]} 68. Kf1 {[%emt 0:00:13]} Kg3 {[%emt 0:01:24]} 69. c3 {[%emt 0:00:30]}
Rf2+ {[%emt 0:00:18]} 0-1

[Event "44th Chess Olympiad Open 2022"]
[Site "Chennai"]
[Date "2022.08.07"]
[Round "9.85"]
[White "Powell, Malcolm"]
[Black "Dabuae, David"]
[Result "1-0"]
[WhiteElo "1218"]
[BlackElo "1707"]
[Annotator "NA"]
[PlyCount "97"]
[EventDate "2022.??.??"]
[TimeControl "60"]

1. Nf3 {[%emt 0:00:02]} Nf6 {[%emt 0:00:10]} 2. c4 {[%emt 0:00:09]} g6 {
[%emt 0:00:07]} 3. g3 {[%emt 0:00:05]} Bg7 {[%emt 0:00:33]} 4. Bg2 {[%emt 0:00:
00]} O-O {[%emt 0:00:09]} 5. O-O {[%emt 0:00:04]} d6 {[%emt 0:00:14]} 6. d3 {
[%emt 0:00:10]} Nc6 {[%emt 0:00:18]} 7. Nbd2 {[%emt 0:00:32]} e5 {[%emt 0:00:
00]} 8. Rb1 {[%emt 0:00:40]} a5 {[%emt 0:00:21]} 9. a3 {[%emt 0:01:22]} Bg4 {
[%emt 0:00:35]} 10. b3 {[%emt 0:02:07]} Re8 {[%emt 0:01:54]} 11. Bb2 {[%emt 0:
00:00]} Qc8 {[%emt 0:00:48]} 12. Qc2 {[%emt 0:00:23]} Nd7 {[%emt 0:00:29]} 13.
Rfe1 {[%emt 0:06:13]} Rb8 {[%emt 0:00:22]} 14. e3 {[%emt 0:07:12]} Nf8 {
[%emt 0:01:40]} 15. Ng5 {[%emt 0:03:51]} h6 {[%emt 0:00:35]} 16. Nge4 {[%emt 0:
00:00]} Bd7 {[%emt 0:00:44]} 17. Nc3 {[%emt 0:01:58]} Ne6 {[%emt 0:13:33]} 18.
Nd5 {[%emt 0:02:54]} Ne7 {[%emt 0:00:42]} 19. Bc3 {[%emt 0:05:22]} b6 {[%emt 0:
00:00]} 20. Ne4 {[%emt 0:10:35]} Nxd5 {[%emt 0:01:43]} 21. cxd5 {[%emt 0:00:12]
} Nf8 {[%emt 0:01:37]} 22. Rbc1 {[%emt 0:07:48]} Rb7 {[%emt 0:00:31]} 23. f4 {
[%emt 0:03:26]} Nh7 {[%emt 0:04:26]} 24. Rf1 {[%emt 0:03:06]} f5 {[%emt 0:00:
00]} 25. Nf2 {[%emt 0:01:39]} Qd8 {[%emt 0:02:13]} 26. Nh3 {[%emt 0:01:14]} Ra7
{[%emt 0:01:41]} 27. e4 {[%emt 0:08:29]} fxe4 {[%emt 0:04:47]} 28. dxe4 {
[%emt 0:00:15]} Qc8 {[%emt 0:00:44]} 29. Nf2 {[%emt 0:00:49]} Nf6 {[%emt 0:00:
00]} 30. Rce1 {[%emt 0:03:48]} Qa6 {[%emt 0:01:40]} 31. Nd3 {[%emt 0:02:34]}
Bb5 {[%emt 0:01:05]} 32. Rf3 {[%emt 0:01:01]} Bd7 {[%emt 0:01:47]} 33. fxe5 {
[%emt 0:04:25]} dxe5 {[%emt 0:01:47]} 34. Nxe5 {[%emt 0:00:07]} Qc8 {[%emt 0:
00:00]} 35. Nxd7 {[%emt 0:04:01]} Nxd7 {[%emt 0:00:32]} 36. Bxg7 {[%emt 0:00:
00]} Kxg7 {[%emt 0:00:28]} 37. Bh3 {[%emt 0:04:27]} Qd8 {[%emt 0:01:11]} 38.
Bxd7 {[%emt 0:00:21]} Qxd7 {[%emt 0:00:09]} 39. Qc3+ {[%emt 0:00:10]} Kh7 {
[%emt 0:00:56]} 40. Ref1 {[%emt 0:01:37]} Re7 {[%emt 0:00:51]} 41. Rf8 {
[%emt 0:30:21]} Rg7 {[%emt 0:30:45]} 42. Rb8 {[%emt 0:00:00]} Qe7 {[%emt 0:00:
00]} 43. Rff8 {[%emt 0:00:00]} g5 {[%emt 0:00:00]} 44. e5 {[%emt 0:00:00]} Qc5+
{[%emt 0:00:00]} 45. Qxc5 {[%emt 0:00:00]} bxc5 {[%emt 0:00:00]} 46. e6 {
[%emt 0:00:00]} a4 {[%emt 0:00:00]} 47. Rf7 {[%emt 0:00:00]} c6 {[%emt 0:00:00]
} 48. Rxg7+ {[%emt 0:00:00]} Kxg7 {[%emt 0:00:00]} 49. d6 {[%emt 0:00:00]} 1-0